fUSD/lending_fUSD_20241110
["ID","MTS","AMOUNT","RATE_DAILY","PERIOD"]
[341757067,1731211838786,-150.0,0.00014578,2]
[341757069,1731211838795,-290.74,0.00014697,2]
[341757071,1731211838804,-150.0,0.00014778,2]
[341757072,1731211838813,-152.054,0.00014832,2]
[341757074,1731211838822,-3134.904,0.00014832,2]
[341757076,1731211838832,-13627.0,0.00014832,2]
[341757079,1731211838841,-904.43249845,0.00014861,2]
[341757080,1731211838850,-37426.99742522,0.00014862,2]
[341757082,1731211838860,-500.0,0.0001488,2]
[341757084,1731211838869,-200.0,0.0001488,2]
[341757087,1731211838879,-1136.2232,0.000149,2]
[341757088,1731211838889,-150.0,0.000149,2]
[341757090,1731211838898,-432.99,0.000149,2]
[341757092,1731211838908,-150.0,0.000149,2]
[341757094,1731211838917,-150.0,0.000149,2]
[341757096,1731211838926,-432.99,0.000149,2]
[341757098,1731211838935,-150.0,0.000149,2]
[341757100,1731211838945,-150.0,0.000149,2]
[341757102,1731211838954,-432.99,0.000149,2]
[341757104,1731211838963,-150.0,0.000149,2]
[341757106,1731211838972,-150.0,0.000149,2]
[341757108,1731211838982,-432.99,0.000149,2]
[341757110,1731211838991,-150.0,0.000149,2]
[341757112,1731211839001,-455.572,0.00014972,2]
[341757114,1731211839010,-1253.0,0.00014972,2]
[341757116,1731211839021,-1794.0,0.00014972,2]
[341757118,1731211839031,-813.0,0.00014972,2]
[341757120,1731211839040,-2910.0,0.00014972,2]
[341757122,1731211839050,-921.0,0.00014972,2]
[341757124,1731211839060,-1258.0,0.00014972,2]
[341757126,1731211839069,-3465.0,0.00014972,2]
[341757128,1731211839079,-500.0,0.00014973,2]
[341757130,1731211839089,-500.0,0.00014973,2]
[341757132,1731211839098,-178.17170358,0.0001499,2]
[341757134,1731211839108,-150.01,0.00014999,2]
[341757136,1731211839117,-460.308,0.00014999,2]
[341757138,1731211839127,-500.0,0.00014999,2]
[341757140,1731211839136,-50000.0,0.00014999,2]
[341757142,1731211839145,-5091.903,0.00015,2]
[341757144,1731211839155,-607861.10329358,0.00015,2]
[341757146,1731211839164,-7115.66111224,0.00015,2]
[341757148,1731211839173,-845606.96126755,0.00015,2]
[341757151,1731211839189,-254.85887675,0.00015,2]
[341757259,1731211840322,-673.428,0.00014832,2]
[341757261,1731211840331,-5757.5635043,0.00015,2]
[341757263,1731211840345,-18030.00012,0.00015,2]
[341757340,1731211841460,-635.32139815,0.00015,2]
[341757341,1731211841582,-1863.89421142,0.00015,2]
[341757353,1731211843197,-312.91197136,0.000143,2]
[341757355,1731211843211,-120.07802864,0.000143,2]
[341757356,1731211843221,-2418.67341418,0.00015,2]
[341757357,1731211843232,-2051.21008184,0.00015,2]
[341757358,1731211843258,-162957.30833689,0.00015,2]
[341757359,1731211843271,-944.15771002,0.00015,2]
[341757360,1731211843282,-1305.28058944,0.00015,2]
[341757361,1731211843293,-4569.15439573,0.00015,2]
[341757362,1731211843322,-38584.87221544,0.00015,2]
[341757363,1731211843365,-6142.9182488,0.00015,2]
[341757369,1731211846673,-18.14988775,0.000149,2]
[341757370,1731211846714,-481.85011225,0.000149,2]
[341757371,1731211846724,-1394.2207097,0.00014989,2]
[341757372,1731211846775,-150.0,0.00014811,2]
[341757373,1731211846785,-2098.6934313,0.00014989,2]
[341757374,1731211846795,-80.07637211,0.0001499,2]
[341757375,1731211846807,-3600.11944349,0.0001499,2]
[341757376,1731211846816,-3867.4774901,0.0001499,2]
[341757377,1731211846826,-4054.7591646,0.0001499,2]
[341757378,1731211846835,-11111.44275381,0.00015,2]
[341757379,1731212004207,165.64,0.00027,60]
[341757380,1731212005569,500.0,0.00025627,120]
[341757381,1731212009748,236.546263,0.00025338,120]
[341757382,1731212018108,-166.67,0.00013823,2]
[341757383,1731212018129,-1852.42,0.00013826,2]
[341757384,1731212018150,-200.0,0.00013891,2]
[341757385,1731212018172,-454.61,0.00013893,2]
[341757386,1731212018193,-439.34,0.00014178,2]
[341757387,1731212018215,-454.61,0.00014588,2]
[341757388,1731212018236,-2871.59829552,0.00014588,2]
[341757389,1731212018257,-389.60938974,0.00014694,2]
[341757390,1731212018282,-150.0,0.00014728,2]
[341757391,1731212018304,-150.0,0.00014731,2]
[341757392,1731212018326,-150.0,0.00014734,2]
[341757393,1731212018349,-150.0,0.00014743,2]
[341757394,1731212018372,-150.0,0.00014756,2]
[341757395,1731212018393,-150.0,0.00014759,2]
[341757396,1731212018416,-150.0,0.00014764,2]
[341757397,1731212018439,-150.0,0.00014764,2]
[341757398,1731212018461,-150.0,0.00014766,2]
[341757399,1731212018485,-150.0,0.00014773,2]
[341757400,1731212018508,-150.0,0.00014774,2]
[341757401,1731212018532,-150.0,0.00014776,2]
[341757402,1731212018943,-150.0,0.00014779,2]
[341757403,1731212018978,-150.0,0.00014779,2]
[341757404,1731212019001,-150.0,0.00014781,2]
[341757405,1731212019024,-150.0,0.00014785,2]
[341757406,1731212019047,-150.0,0.00014791,2]
[341757407,1731212019070,-150.0,0.00014793,2]
[341757408,1731212019093,-150.0,0.00014797,2]
[341757409,1731212019116,-150.0,0.00014798,2]
[341757410,1731212019140,-150.0,0.000148,2]
[341757411,1731212019166,-150.0,0.000148,2]
[341757412,1731212019190,-150.0,0.00014805,2]
[341757413,1731212019214,-150.0,0.00014806,2]
[341757414,1731212019239,-150.0,0.00014806,2]
[341757415,1731212019266,-150.0,0.00014806,2]
[341757416,1731212019290,-150.0,0.00014806,2]
[341757417,1731212019314,-150.0,0.00014809,2]
[341757418,1731212019338,-150.0,0.00014811,2]
[341757419,1731212019364,-150.0,0.00014817,2]
[341757420,1731212019388,-150.0,0.00014833,2]
[341757421,1731212019413,-150.0,0.00014839,2]
[341757422,1731212019436,-150.0,0.00014841,2]
[341757423,1731212019459,-150.0,0.00014844,2]
[341757424,1731212019483,-150.0,0.00014846,2]
[341757425,1731212019505,-150.0,0.00014852,2]
[341757426,1731212019529,-150.0,0.00014855,2]
[341757427,1731212019551,-112309.29702633,0.00014862,2]
[341757428,1731212019573,-150.0,0.00014864,2]
[341757429,1731212019600,-150.0,0.00014864,2]
[341757430,1731212019624,-1096.6773,0.00014872,2]
[341757431,1731212019648,-150.0,0.00014876,2]
[341757432,1731212019673,-150.0,0.0001488,2]
[341757433,1731212019696,-500.0,0.0001488,2]
[341757434,1731212019718,-200.0,0.0001488,2]
[341757435,1731212019740,-150.0,0.00014886,2]
[341757436,1731212019762,-150.0,0.00014889,2]
[341757437,1731212019786,-150.0,0.00014891,2]
[341757438,1731212019810,-150.0,0.00014891,2]
[341757439,1731212019833,-223.28592793,0.00014899,2]
[341757440,1731212019857,-150.0,0.00014899,2]
[341757441,1731212019878,-1000.0,0.000149,2]
[341757442,1731212019900,-1000.0,0.000149,2]
[341757443,1731212019924,-2500.0,0.000149,2]
[341757444,1731212019946,-186.60909478,0.000149,2]
[341757445,1731212019969,-200.0,0.000149,2]
[341757446,1731212019992,-14721.2508,0.000149,2]
[341757447,1731212020014,-389.6455,0.000149,2]
[341757448,1731212020036,-11920.8636,0.000149,2]
[341757449,1731212020058,-68500.398,0.000149,2]
[341757450,1731212020080,-169.89254742,0.000149,2]
[341757451,1731212020102,-3209.8525,0.000149,2]
[341757452,1731212020124,-41341.7756,0.000149,2]
[341757453,1731212020146,-367.88326482,0.000149,2]
[341757454,1731212020170,-455.11820656,0.000149,2]
[341757455,1731212020194,-150.0,0.00014903,2]
[341757456,1731212020218,-150.0,0.00014905,2]
[341757457,1731212020241,-150.0,0.00014905,2]
[341757458,1731212020269,-150.0,0.0001491,2]
[341757459,1731212020295,-150.0,0.00014912,2]
[341757460,1731212020320,-150.0,0.00014912,2]
[341757461,1731212020344,-150.0,0.00014915,2]
[341757462,1731212020369,-150.0,0.00014915,2]
[341757463,1731212020392,-150.0,0.00014918,2]
[341757464,1731212020416,-150.0,0.00014921,2]
[341757465,1731212020442,-150.0,0.00014923,2]
[341757466,1731212020466,-150.0,0.00014926,2]
[341757467,1731212020492,-150.0,0.00014933,2]
[341757468,1731212020518,-150.0,0.00014941,2]
[341757469,1731212020542,-150.0,0.00014947,2]
[341757470,1731212020566,-150.0,0.00014965,2]
[341757471,1731212020591,-150.0,0.00014967,2]
[341757472,1731212020616,-150.0,0.00014967,2]
[341757473,1731212020640,-150.0,0.00014969,2]
[341757474,1731212020664,-500.0,0.00014973,2]
[341757475,1731212020685,-503.47775314,0.00014973,2]
[341757476,1731212020707,-160.41954809,0.00014973,2]
[341757477,1731212020730,-500.0,0.00014973,2]
[341757478,1731212020753,-500.0,0.00014973,2]
[341757479,1731212020777,-150.0,0.00014974,2]
[341757480,1731212020800,-150.0,0.00014979,2]
[341757481,1731212020825,-150.0,0.00014982,2]
[341757482,1731212020850,-150.0,0.00014983,2]
[341757483,1731212020875,-150.0,0.00014986,2]
[341757484,1731212020901,-150.0,0.00014988,2]
[341757485,1731212020926,-150.0,0.00014989,2]
[341757486,1731212020951,-2298.9166787,0.00014989,2]
[341757487,1731212020973,-2050.5665557,0.0001499,2]
[341757488,1731212020997,-1802.2164328,0.0001499,2]
[341757489,1731212021019,-1553.8663098,0.0001499,2]
[341757490,1731212021042,-500.0,0.00014998,2]
[341757491,1731212021065,-500.0,0.00014998,2]
[341757492,1731212021087,-500.0,0.00014998,2]
[341757493,1731212021109,-161.07678162,0.00014998,2]
[341757494,1731212021132,-273.42527218,0.00014998,2]
[341757495,1731212021156,-500.0,0.00014998,2]
[341757496,1731212021181,-556.96994127,0.00014998,2]
[341757497,1731212021207,-500.0,0.00014999,2]
[341757498,1731212021230,-500.0,0.00014999,2]
[341757499,1731212021254,-500.0,0.00014999,2]
[341757500,1731212021281,-500.0,0.00014999,2]
[341757501,1731212021304,-305.72213034,0.00014999,2]
[341757502,1731212021327,-500.0,0.00014999,2]
[341757503,1731212021351,-153.34573388,0.00014999,2]
[341757504,1731212021375,-156258.58980938,0.00015,2]
[341757506,1731212513603,1070.0,0.00011853,2]
[341757508,1731212607206,500.0,0.00026082,120]
[341757510,1731212611073,200.0,0.00025082,120]
[341757511,1731212719836,150.0,9e-05,2]
[341757512,1731212719859,150.0,9e-05,2]
[341757513,1731212719885,150.0,9e-05,2]
[341757514,1731212719908,150.0,9e-05,2]
[341757515,1731212719931,150.0,9e-05,2]
[341757516,1731212719953,1.60354689,9e-05,2]
[341757517,1731212842138,-154.07829336,0.000137,2]
[341757518,1731212899883,150.0,0.00010913,2]
[341757519,1731212899908,3.45,0.00010913,2]
[341757547,1731213032351,-166.69,0.0001364,2]
[341757548,1731213032361,-3267.0,0.00013699,2]
[341757550,1731213032370,-95.92170664,0.000137,2]
[341757552,1731213032379,-512.76,0.00013723,2]
[341757554,1731213032387,-1316.98,0.00013734,2]
[341757556,1731213032396,-715.64829336,0.00013738,2]
[341757557,1731213032406,-700.0,0.00013738,2]
[341757558,1731213032443,-4642.50158129,0.00013738,2]
[341757559,1731213032453,-200.0,0.00013738,2]
[341757560,1731213032461,-476.49,0.00013738,2]
[341757561,1731213032471,-348.95,0.00013748,2]
[341757562,1731213032479,-300.0,0.00013751,2]
[341757563,1731213032488,-200.0,0.00013753,2]
[341757564,1731213032497,-2000.0,0.0001377,2]
[341757565,1731213032506,-736.65,0.0001377,2]
[341757566,1731213032514,-9999.99,0.0001377,2]
[341757567,1731213032523,-150.0,0.00013789,2]
[341757568,1731213032532,-500.0,0.0001379,2]
[341757569,1731213032542,-150.99,0.0001379,2]
[341757570,1731213032554,-499.99,0.0001379,2]
[341757571,1731213032563,-1220.16,0.0001379,2]
[341757572,1731213032572,-1091.79,0.0001379,2]
[341757573,1731213032581,-293.32,0.0001379,2]
[341757574,1731213032590,-999.99,0.0001379,2]
[341757575,1731213032600,-474.44,0.0001379,2]
[341757576,1731213032609,-500.0,0.000138,2]
[341757577,1731213032618,-160.41954809,0.000138,2]
[341757578,1731213032628,-503.47775314,0.000138,2]
[341757579,1731213032637,-250.0,0.00013801,2]
[341757580,1731213032646,-239.74,0.0001381,2]
[341757581,1731213032654,-20166.74988397,0.0001398,2]
[341757582,1731213032663,-831.13,0.00014112,2]
[341757583,1731213032672,-1070.0,0.00014117,2]
[341757584,1731213032681,-412.79,0.00014137,2]
[341757585,1731213032690,-904.43249845,0.00014265,2]
[341757586,1731213032699,-378.18544911,0.00014265,2]
[341757587,1731213032708,-285.12,0.00014267,2]
[341757589,1731213032717,-155.52,0.00014267,2]
[341757590,1731213032726,-155.62,0.00014267,2]
[341757591,1731213032734,-1000.0,0.00014267,2]
[341757592,1731213032743,-2071.92,0.00014267,2]
[341757593,1731213032751,-1852.42,0.00014267,2]
[341757594,1731213032760,-23900.0,0.00014267,2]
[341757595,1731213032769,-155.52,0.00014302,2]
[341757597,1731213032779,-155.52,0.00014338,2]
[341757599,1731213032789,-155.52,0.00014374,2]
[341757600,1731213032799,-422.04,0.00014378,2]
[341757602,1731213032808,-155.52,0.00014409,2]
[341757603,1731213032817,-512.76,0.00014409,2]
[341757605,1731213032827,-150.0,0.00014478,2]
[341757608,1731213032836,-432.99,0.00014478,2]
[341757609,1731213032846,-1000.0,0.00014549,2]
[341757611,1731213032855,-500.44503906,0.0001455,2]
[341757612,1731213032864,-389.60938974,0.00014641,2]
[341757613,1731213032874,-250.0,0.00014672,2]
[341757614,1731213032883,-150.0,0.00014728,2]
[341757615,1731213032893,-150.0,0.0001474,2]
[341757616,1731213032902,-150.0,0.00014749,2]
[341757617,1731213032911,-150.0,0.00014756,2]
[341757618,1731213032921,-5091.903,0.00014759,2]
[341757619,1731213032930,-150.0,0.00014759,2]
[341757620,1731213032939,-150.0,0.0001476,2]
[341757621,1731213032949,-150.0,0.00014763,2]
[341757622,1731213032958,-154.83618574,0.00014765,2]
[341757623,1731213032967,-150.0,0.00014775,2]
[341757624,1731213032976,-1500.0,0.00014775,2]
[341757625,1731213032985,-150.0,0.00014777,2]
[341757626,1731213032994,-150.0,0.00014782,2]
[341757627,1731213033003,-150.0,0.00014783,2]
[341757628,1731213033013,-150.0,0.00014785,2]
[341757629,1731213033022,-150.0,0.0001479,2]
[341757630,1731213033034,-150.0,0.00014791,2]
[341757631,1731213033045,-150.0,0.00014791,2]
[341757632,1731213033055,-150.0,0.00014795,2]
[341757633,1731213033066,-500.0,0.00014798,2]
[341757634,1731213033075,-500.0,0.00014798,2]
[341757635,1731213033084,-500.0,0.00014798,2]
[341757636,1731213033093,-500.0,0.00014798,2]
[341757637,1731213033102,-273.42527218,0.00014798,2]
[341757638,1731213033112,-546.2420506,0.00014798,2]
[341757639,1731213033121,-1096.6773,0.00014799,2]
[341757640,1731213033130,-3209.8525,0.00014799,2]
[341757641,1731213033139,-41341.7756,0.00014799,2]
[341757642,1731213033148,-1000.0,0.00014799,2]
[341757643,1731213033160,-150.0,0.00014802,2]
[341757644,1731213033170,-150.0,0.00014804,2]
[341757645,1731213033179,-150.0,0.00014809,2]
[341757646,1731213033188,-150.0,0.00014812,2]
[341757647,1731213033197,-150.0,0.00014818,2]
[341757648,1731213033206,-300.0,0.0001482,2]
[341757649,1731213033216,-150.0,0.00014826,2]
[341757650,1731213033225,-150.0,0.00014826,2]
[341757651,1731213033234,-150.0,0.00014828,2]
[341757652,1731213033244,-150.0,0.00014834,2]
[341757653,1731213033253,-150.0,0.00014844,2]
[341757654,1731213033262,-150.0,0.00014846,2]
[341757655,1731213033272,-150.0,0.00014848,2]
[341757656,1731213033281,-150.0,0.00014849,2]
[341757657,1731213033292,-150.0,0.00014851,2]
[341757658,1731213033301,-150.0,0.00014853,2]
[341757659,1731213033311,-150.0,0.00014856,2]
[341757660,1731213033320,-150.0,0.00014857,2]
[341757661,1731213033330,-150.0,0.00014862,2]
[341757662,1731213033349,-149736.29445155,0.00014862,2]
[341757663,1731213033358,-150.0,0.00014871,2]
[341757664,1731213033606,-500.0,0.00014873,2]
[341757665,1731213033615,-500.88978415,0.00014873,2]
[341757666,1731213033624,-150.0,0.00014873,2]
[341757667,1731213033635,-150.0,0.00014873,2]
[341757668,1731213033644,-500.0,0.0001488,2]
[341757669,1731213033653,-150.0,0.00014883,2]
[341757670,1731213033662,-150.0,0.00014885,2]
[341757671,1731213033671,-150.0,0.00014893,2]
[341757672,1731213033680,-174.53887302,0.00014898,2]
[341757673,1731213033689,-500.0,0.00014898,2]
[341757674,1731213033699,-500.0,0.00014898,2]
[341757675,1731213033708,-500.0,0.00014898,2]
[341757676,1731213033717,-500.0,0.00014898,2]
[341757677,1731213033727,-500.0,0.00014898,2]
[341757678,1731213033737,-500.0,0.00014898,2]
[341757679,1731213033746,-387.91577602,0.00014898,2]
[341757680,1731213033755,-500.0,0.00014898,2]
[341757681,1731213033765,-500.0,0.00014898,2]
[341757682,1731213033774,-500.0,0.00014898,2]
[341757683,1731213033784,-500.0,0.00014898,2]
[341757684,1731213033795,-500.0,0.00014898,2]
[341757685,1731213033804,-500.0,0.00014898,2]
[341757686,1731213033813,-521.54104321,0.00014898,2]
[341757687,1731213033823,-150.0,0.00014898,2]
[341757688,1731213033832,-138245.6842,0.00014899,2]
[341757689,1731213033841,-389.6455,0.00014899,2]
[341757690,1731213033851,-14721.2508,0.00014899,2]
[341757691,1731213033860,-68500.398,0.00014899,2]
[341757692,1731213033869,-11920.8636,0.00014899,2]
[341757693,1731213033878,-1944.75,0.000149,2]
[341757694,1731213033887,-5356.036,0.000149,2]
[341757695,1731213033896,-186.60909478,0.000149,2]
[341757696,1731213033906,-159.1240443,0.000149,2]
[341757697,1731213033915,-200.0,0.000149,2]
[341757698,1731213033924,-368.64205086,0.000149,2]
[341757699,1731213033933,-1000.0,0.000149,2]
[341757700,1731213033942,-150.0,0.000149,2]
[341757701,1731213033952,-455.11820656,0.000149,2]
[341757702,1731213033961,-150.0,0.00014902,2]
[341757703,1731213033970,-150.0,0.00014903,2]
[341757704,1731213033979,-150.0,0.00014904,2]
[341757705,1731213033989,-223.28592793,0.00014906,2]
[341757706,1731213034000,-255.0,0.00014906,2]
[341757707,1731213034009,-150.0,0.00014915,2]
[341757708,1731213034018,-150.0,0.00014922,2]
[341757709,1731213034028,-150.0,0.00014924,2]
[341757710,1731213034038,-150.0,0.00014926,2]
[341757711,1731213034049,-150.0,0.0001493,2]
[341757712,1731213034060,-150.0,0.00014931,2]
[341757713,1731213034069,-150.0,0.00014932,2]
[341757714,1731213034078,-150.0,0.00014935,2]
[341757715,1731213034088,-150.0,0.00014936,2]
[341757716,1731213034097,-150.0,0.00014937,2]
[341757717,1731213034107,-150.0,0.0001494,2]
[341757718,1731213034116,-150.0,0.00014941,2]
[341757719,1731213034126,-150.0,0.00014941,2]
[341757720,1731213034136,-1500.0,0.00014941,2]
[341757721,1731213034145,-150.0,0.00014942,2]
[341757722,1731213034157,-172.69,0.00014945,2]
[341757723,1731213034171,-649.996,0.00014945,2]
[341757724,1731213034181,-150.0,0.00014951,2]
[341757725,1731213034191,-150.0,0.00014959,2]
[341757726,1731213034200,-150.0,0.00014963,2]
[341757727,1731213034209,-150.0,0.00014968,2]
[341757728,1731213034219,-150.0,0.0001497,2]
[341757729,1731213034228,-150.0,0.00014971,2]
[341757730,1731213034237,-161.8134079,0.00014973,2]
[341757731,1731213034247,-162.80051472,0.00014973,2]
[341757732,1731213034256,-526.00267614,0.00014973,2]
[341757733,1731213034265,-500.0,0.00014973,2]
[341757734,1731213034276,-500.0,0.00014973,2]
[341757735,1731213034290,-604.04382528,0.00014973,2]
[341757736,1731213034300,-500.0,0.00014973,2]
[341757737,1731213034309,-162.16142326,0.00014973,2]
[341757738,1731213034318,-500.31652329,0.00014973,2]
[341757739,1731213034327,-500.0,0.00014973,2]
[341757740,1731213034336,-500.0,0.00014973,2]
[341757741,1731213034346,-500.0,0.00014973,2]
[341757742,1731213034355,-500.0,0.00014973,2]
[341757743,1731213034364,-500.0,0.00014973,2]
[341757744,1731213034373,-150.0,0.00014976,2]
[341757745,1731213034383,-588.0,0.00014986,2]
[341757746,1731213034391,-193203.0,0.00014986,2]
[341757747,1731213034400,-4129.0,0.00014986,2]
[341757748,1731213034410,-1759.4375648,0.00014989,2]
[341757749,1731213034419,-1137.9719173,0.00014989,2]
[341757750,1731213034428,-310.0626674,0.00014989,2]
[341757751,1731213034437,-1569.3669373,0.0001499,2]
[341757752,1731213034446,-1379.2963099,0.0001499,2]
[341757753,1731213034455,-1189.2256824,0.0001499,2]
[341757754,1731213034463,-1260.8740406,0.0001499,2]
[341757755,1731213034472,-1383.7761638,0.0001499,2]
[341757756,1731213034481,-1506.6782871,0.0001499,2]
[341757757,1731213034491,-343.5497505,0.0001499,2]
[341757758,1731213034499,-377.0368336,0.0001499,2]
[341757759,1731213034509,-410.5239167,0.0001499,2]
[341757760,1731213034519,-150.0,0.0001499,2]
[341757761,1731213034528,-150.0,0.0001499,2]
[341757762,1731213034537,-150.0,0.0001499,2]
[341757763,1731213034547,-150.0,0.00014992,2]
[341757764,1731213034559,-150.0,0.00014996,2]
[341757765,1731213034568,-150.01,0.00014999,2]
[341757766,1731213034577,-1997.14282116,0.00014999,2]
[341757767,1731213034586,-1922.0,0.00014999,2]
[341757768,1731213034596,-814.0,0.00014999,2]
[341757769,1731213034605,-1259.0,0.00014999,2]
[341757770,1731213034614,-921.0,0.00014999,2]
[341757771,1731213034623,-2910.0,0.00014999,2]
[341757772,1731213034633,-3465.0,0.00014999,2]
[341757773,1731213034642,-60891.17013162,0.00014999,2]
[341757774,1731213034651,-1091.0,0.00014999,2]
[341757775,1731213034660,-50000.0,0.00014999,2]
[341757776,1731213034670,-2141.46305043,0.00014999,2]
[341757777,1731213034679,-5927.0,0.00014999,2]
[341757778,1731213034689,-152.054,0.00014999,2]
[341757779,1731213034698,-455.572,0.00014999,2]
[341757780,1731213034707,-633.705,0.00014999,2]
[341757781,1731213034716,-1253.0,0.00014999,2]
[341757782,1731213034726,-195.51108701,0.00014999,2]
[341757783,1731213034735,-7286.82023294,0.00015,2]
[341757784,1731213034744,-3774199.77160054,0.00015,2]
[341757785,1731213034769,-96262.47340163,0.00015,2]
[341757786,1731213034781,-48460.34176614,0.00015,2]
[341757787,1731213034803,-1660.24866074,0.00015,2]
[341757788,1731213034814,-1323.75871027,0.00015,2]
[341757789,1731213034844,-18290.24716193,0.00015,2]
[341757902,1731213040077,-168.96,0.00013575,2]
[341757904,1731213040086,-168.96,0.00013711,2]
[341757907,1731213040096,-502.11901539,0.000138,2]
[341757908,1731213040105,-204.44401474,0.00014973,2]
[341757911,1731213040116,-295.55598526,0.00014973,2]
[341757913,1731213040125,-196.61505604,0.00014973,2]
[341757916,1731213040144,-303.38494396,0.00014973,2]
[341757918,1731213040154,-361.06917819,0.00014976,2]
[341757920,1731213040164,-361.06917819,0.0001499,2]
[341757922,1731213040173,-361.06917819,0.0001499,2]
[341757924,1731213040184,-13627.0,0.00014999,2]
[341757926,1731213040193,-10958.7118021,0.00015,2]
[341757928,1731213040204,-7076.99216369,0.00015,2]
[341757934,1731213040249,-419.16373027,0.00015,2]
[341757942,1731213040309,-14277.3138408,0.00015,2]
[341757951,1731213040386,-5641.15873291,0.00015,2]
[341757953,1731213040397,-22828.896,0.00015,2]
[341757960,1731213040458,-279.36,0.00015,2]
[341757964,1731213040484,-1602560.68829451,0.00015,2]
[341757976,1731213040585,-183.94163241,0.00014886,2]
[341757978,1731213040594,-3819.03852881,0.00015,2]
[341758014,1731213041388,-348.52170556,0.000149,2]
[341758015,1731213041401,-559.38,0.000149,2]
[341758016,1731213041413,-5356.87639164,0.000149,2]
[341758017,1731213041424,-150.01,0.00014999,2]
[341758018,1731213041435,-1167.18,0.00014999,2]
[341758019,1731213041444,-463128.60882544,0.00015,2]
[341758020,1731213041454,-117524.32256747,0.00015,2]
[341758021,1731213041464,-401273.92490298,0.00015,2]
[341758022,1731213041477,-577.29297945,0.00015,2]
[341758023,1731213041492,-1405.28875568,0.00015,2]
[341758024,1731213041502,-324.28838619,0.00015,2]
[341758025,1731213041513,-287.2359688,0.00015,2]
[341758026,1731213041524,-606.91633779,0.00015,2]
[341758027,1731213041754,-2782.92482253,0.00015,2]
[341758028,1731213041862,-263.4485,0.00015,2]
[341758029,1731213041877,-1000.0,0.00015,2]
[341758036,1731213043388,-362.09,0.00014747,2]
[341758037,1731213043397,-7786.5428237,0.00015,2]
[341758038,1731213043408,-15454.0,0.00015,2]
[341758040,1731213043759,-766868.91950088,0.00015,2]
[341758041,1731213043869,-979.4983364,0.00015,2]
[341758042,1731213043881,-5323.97768937,0.00015,2]
[341758043,1731213043896,-3659.39185541,0.00015,2]
[341758044,1731213043907,-10061.09287687,0.00015,2]
[341758045,1731213043919,-425.86036695,0.00015,2]
[341758046,1731213043930,-847.87895354,0.00015,2]
[341758054,1731213046312,-250.0,0.0001461,2]
[341758056,1731213046322,-183.94163241,0.000149,2]
[341758057,1731213046332,-616.0,0.00014999,2]
[341758058,1731213046343,-6929.44122182,0.00015,2]
[341758059,1731213046490,-1323.4,0.00015,2]
[341758060,1731213046538,-2244.26075152,0.00015,2]
[341758067,1731213046822,-4762.04061838,0.00015,2]
[341758068,1731213046834,-407.67410078,0.00015,2]
[341758069,1731213047118,150.0,0.00012505,5]
[341758070,1731213071131,307.00836605,0.00014899,120]
[341758071,1731213077223,1700.0,0.00027,60]
[341758078,1731213208173,4601.8157159,0.00027,60]
[341758079,1731213240850,4453.6353998,0.00027,60]
[341758081,1731213320714,-501.67719717,0.000138,2]
[341758082,1731213329216,150.0,0.00012,2]
[341758083,1731213329239,150.0,0.00012,2]